bitfinex/quotes_BTCUSD_20250513
["timestamp","ask_amount","ask_price","bid_price","bid_amount"]
[1747143281728,0.34017539,103790.0,103780.0,0.033]
[1747143282585,0.34017539,103790.0,103780.0,0.03]
[1747143283699,0.79064113,103790.0,103780.0,0.03]
[1747143284185,1.15518198,103790.0,103780.0,0.03]
[1747143285427,1.15164113,103790.0,103780.0,0.03]
[1747143285644,1.24895053,103790.0,103780.0,0.03]
[1747143286958,1.25195053,103790.0,103780.0,0.03]
[1747143289097,1.24195053,103790.0,103780.0,0.03]
[1747143289329,0.89805539,103790.0,103780.0,0.03]
[1747143289545,0.34417539,103790.0,103780.0,0.03]
[1747143290208,0.32857539,103790.0,103780.0,0.03]
[1747143291972,0.31327539,103790.0,103780.0,0.03]
[1747143292221,0.35056486,103790.0,103780.0,0.03]
[1747143292901,0.31327539,103790.0,103780.0,0.03]
[1747143293605,0.21596599,103790.0,103780.0,0.03]
[1747143294500,0.24756599,103790.0,103780.0,0.03]
[1747143294748,0.34487539,103790.0,103780.0,0.03]
[1747143294959,0.79534113,103790.0,103780.0,0.03]
[1747143295166,0.89265053,103790.0,103780.0,0.03]
[1747143295371,0.44218479,103790.0,103780.0,0.03]
[1747143297295,0.34487539,103790.0,103780.0,0.03]
[1747143297707,0.21200667,103770.0,103760.0,0.48689934]
[1747143297923,0.21200667,103770.0,103760.0,0.47726172]
[1747143298185,0.22164327,103770.0,103760.0,0.52247374]
[1747143298380,0.22164373,103770.0,103760.0,0.50319934]
[1747143298592,0.22164373,103770.0,103760.0,0.51584823]
[1747143298784,0.21200722,103770.0,103760.0,0.50621089]
[1747143299029,0.20237062,103770.0,103760.0,0.41812608]
[1747143299249,0.20237062,103770.0,103760.0,0.43740095]
[1747143299473,0.21200703,103770.0,103760.0,0.45270095]
[1747143299998,0.01927254,103770.0,103760.0,0.4623382]
[1747143300222,0.21396636,103790.0,103780.0,0.21198623]
[1747143300449,0.002,103790.0,103780.0,1.11294708]
[1747143300671,0.002,103790.0,103780.0,1.01828134]
[1747143300885,0.002,103790.0,103780.0,1.13013159]
[1747143300886,0.02126828,103790.0,103780.0,1.13013159]
[1747143301125,0.011634,103790.0,103780.0,1.13013159]
[1747143301313,0.02126818,103790.0,103780.0,1.13013159]
[1747143301633,0.19569679,103790.0,103780.0,0.42792]
[1747143301854,0.0049258,103790.0,103780.0,0.63990623]
[1747143302085,0.002,103790.0,103780.0,1.13094793]
[1747143302298,0.0309032,103790.0,103780.0,0.79439159]
[1747143302516,0.21396581,103790.0,103780.0,0.002]
[1747143302760,0.25463024,103790.0,103780.0,0.002]
[1747143302968,0.27073024,103790.0,103780.0,0.003]
[1747143303192,0.38323964,103790.0,103780.0,0.003]
[1747143303649,0.21396581,103790.0,103780.0,0.003]
[1747143303865,0.21396581,103790.0,103780.0,0.001]
[1747143304337,0.21396581,103790.0,103780.0,0.20235111]
[1747143304338,0.02126902,103790.0,103780.0,0.20235111]
[1747143304576,0.22360055,103790.0,103780.0,0.21198678]
[1747143304792,0.22162134,103780.0,103760.0,1.11963636]
[1747143305005,0.22162134,103780.0,103760.0,1.26696441]
[1747143305006,0.21200667,103770.0,103760.0,1.26696441]
[1747143305228,0.21200667,103770.0,103760.0,1.4789915]
[1747143305229,0.01927274,103770.0,103760.0,1.4789915]
[1747143305437,0.23127996,103770.0,103760.0,1.13899168]
[1747143305650,0.23127996,103770.0,103760.0,0.92997582]
[1747143305885,0.22181863,103770.0,103760.0,0.50349582]
[1747143306096,0.21200722,103770.0,103760.0,0.50649582]
[1747143306717,0.20237062,103770.0,103760.0,0.69924832]
[1747143306931,0.19271535,103780.0,103760.0,0.73516007]
[1747143307140,0.01927236,103770.0,103760.0,0.72816007]
[1747143307349,0.2216218,103780.0,103770.0,0.21200703]
[1747143307567,0.2216218,103780.0,103770.0,0.21200713]
[1747143307784,0.01927014,103780.0,103770.0,0.23127967]
[1747143308006,0.23125664,103780.0,103770.0,0.22164354]
[1747143308216,0.002,103790.0,103780.0,0.22162152]
[1747143308447,0.02126846,103790.0,103780.0,0.22162152]
[1747143308661,0.22360036,103790.0,103780.0,0.20235111]
[1747143308907,0.02126864,103790.0,103780.0,0.21198604]
[1747143309123,0.23323482,103790.0,103780.0,0.22162171]
[1747143309549,0.0309032,103790.0,103780.0,0.24089259]
[1747143309768,0.003,103790.0,103780.0,1.24538802]
[1747143309989,0.02226846,103790.0,103780.0,1.24738802]
[1747143310214,0.01263409,103790.0,103780.0,0.79692228]
[1747143310395,0.03190264,103790.0,103780.0,0.79692228]
[1747143310592,0.02226827,103790.0,103780.0,0.79692228]
[1747143310844,0.23423455,103790.0,103780.0,0.002]
[1747143311063,0.23838763,103790.0,103780.0,0.002]
[1747143311291,0.21496618,103790.0,103780.0,0.00501124]
[1747143313186,0.23116618,103790.0,103780.0,0.00501124]
[1747143313386,0.24636618,103790.0,103780.0,0.00501124]
[1747143313593,0.34367558,103790.0,103780.0,0.00501124]
[1747143313801,0.44098498,103790.0,103780.0,0.00501124]
[1747143314378,0.89145072,103790.0,103780.0,0.002]
[1747143314580,1.46493072,103790.0,103780.0,0.002]
[1747143314925,0.68367558,103790.0,103780.0,0.002]
[1747143315283,1.10987558,103790.0,103780.0,0.002]
[1747143315501,0.34367558,103790.0,103780.0,0.002]
[1747143315917,0.79414132,103790.0,103780.0,0.002]
[1747143316381,0.24400667,103770.0,103760.0,0.00048441]
[1747143316585,1.22810181,103770.0,103760.0,0.00048441]
[1747143316797,0.77763607,103770.0,103760.0,0.00048441]
[1747143317164,0.76751607,103770.0,103760.0,0.00048441]
[1747143317644,0.34131607,103770.0,103760.0,0.00048441]
[1747143317820,0.32581607,103770.0,103760.0,0.00048441]
[1747143318170,0.34111607,103770.0,103760.0,0.00048441]
[1747143318580,0.34411607,103770.0,103760.0,0.00048441]
[1747143319017,0.34511607,103770.0,103760.0,0.00048441]
[1747143319708,0.32981607,103770.0,103760.0,0.00048441]
[1747143319912,0.40333467,103770.0,103760.0,0.00048441]
[1747143320167,0.34501607,103770.0,103760.0,0.00048441]
[1747143320613,0.31331607,103770.0,103760.0,0.00048441]
[1747143321247,0.31331607,103770.0,103760.0,0.0034964]
[1747143321920,0.21600667,103770.0,103760.0,0.0034964]
[1747143322161,0.22564336,103770.0,103760.0,0.21552349]
[1747143322371,0.22564336,103770.0,103760.0,0.54024715]
[1747143322576,0.21600667,103770.0,103760.0,0.56508468]
[1747143322807,0.01363595,103770.0,103760.0,0.5843589]
[1747143323015,0.02327217,103770.0,103760.0,0.9098683]
[1747143323219,0.03954491,103770.0,103760.0,0.90986839]
[1747143323447,0.01900403,103770.0,103760.0,0.91950536]
[1747143323669,0.2310107,103770.0,103760.0,0.89359408]
[1747143323881,0.21200667,103770.0,103760.0,0.3464484]
[1747143324121,0.25247896,103770.0,103760.0,0.3464484]
[1747143324335,0.36498836,103770.0,103760.0,0.0064484]
[1747143324511,0.32451607,103770.0,103760.0,0.0064484]
[1747143324716,0.30931607,103770.0,103760.0,0.0064484]
[1747143324920,0.30931607,103770.0,103760.0,0.0034484]
[1747143325113,0.30931607,103770.0,103760.0,0.0074484]
[1747143326046,0.30931607,103770.0,103760.0,0.0054484]
[1747143326487,0.67442489,103770.0,103760.0,0.0054484]
[1747143326702,0.67442489,103770.0,103760.0,0.0034484]
[1747143326883,0.67442489,103770.0,103760.0,0.0064484]
[1747143327330,1.01883371,103770.0,103760.0,0.00343641]
[1747143327567,1.36883371,103770.0,103760.0,0.00343641]
[1747143327815,1.46614311,103770.0,103760.0,0.00343641]
[1747143328031,1.47068396,103770.0,103760.0,0.00343641]
[1747143328238,1.47068396,103770.0,103760.0,0.00043641]
[1747143328439,1.47168396,103770.0,103760.0,0.00043641]
[1747143328656,0.70555692,103770.0,103760.0,0.00043641]
[1747143328870,0.70555692,103770.0,103760.0,0.00582473]
[1747143328871,1.44330489,103770.0,103760.0,0.00582473]
[1747143329087,1.79771371,103770.0,103760.0,0.00043641]
[1747143329460,1.58059951,103770.0,103760.0,0.00043641]
[1747143330074,1.57514036,103770.0,103760.0,0.00043641]
[1747143330296,1.67244976,103770.0,103760.0,0.00043641]
[1747143330505,1.67244976,103770.0,103760.0,0.00586571]
[1747143331701,1.67244976,103770.0,103760.0,0.01320541]
[1747143332127,1.66844976,103770.0,103760.0,0.01320541]
[1747143332326,1.13859681,103760.0,103750.0,1.0]
[1747143332531,2.03261561,103760.0,103750.0,1.00004846]
[1747143333182,2.04715646,103760.0,103750.0,1.00004846]
[1747143333489,2.02021302,103760.0,103750.0,1.00004846]
[1747143333684,2.02621302,103760.0,103750.0,1.00004846]
[1747143334554,2.49948796,103760.0,103750.0,1.00004846]
[1747143334768,1.62302452,103760.0,103750.0,1.00004846]
[1747143334983,1.95145302,103760.0,103750.0,1.00004846]
[1747143335217,2.27480277,103760.0,103750.0,1.00004846]
[1747143335428,2.28934362,103760.0,103750.0,1.00004846]
[1747143335660,1.86414362,103760.0,103750.0,1.00004846]
[1747143335883,1.44647933,103760.0,103750.0,1.00004846]
[1747143336098,1.11870873,103760.0,103750.0,1.00004846]
[1747143336314,0.63206873,103760.0,103750.0,1.00004846]
[1747143336953,0.53475933,103760.0,103750.0,1.00004846]
[1747143337165,0.51845933,103760.0,103750.0,1.00004846]
[1747143337376,0.53395933,103760.0,103750.0,1.00004846]
[1747143338115,1.00926277,103760.0,103750.0,1.00004846]
[1747143338826,1.00526277,103760.0,103750.0,1.00004846]
[1747143339137,1.10457217,103760.0,103750.0,1.00004846]
[1747143339377,1.46911302,103760.0,103750.0,1.00004846]
[1747143339780,1.46911302,103760.0,103750.0,1.01023556]
[1747143340465,1.36180362,103760.0,103750.0,1.01023556]
[1747143340675,0.65719933,103760.0,103750.0,1.01023556]
[1747143340882,0.31719933,103760.0,103750.0,1.01023556]
[1747143341095,0.74227933,103760.0,103750.0,1.01023556]
[1747143341742,1.21852362,103760.0,103750.0,1.01023556]
[1747143341954,1.33143302,103760.0,103750.0,1.01023556]
[1747143342387,0.74215933,103760.0,103750.0,1.01023556]
[1747143342605,0.30169933,103760.0,103750.0,1.01023556]
[1747143342853,0.30169933,103760.0,103750.0,1.02633556]
[1747143343146,0.002,103760.0,103750.0,1.57838328]
[1747143343379,0.002,103760.0,103750.0,2.51378562]
[1747143343586,0.0039258,103790.0,103780.0,0.3703]
[1747143343806,0.21396581,103790.0,103780.0,0.3703]
[1747143344030,0.21396581,103790.0,103780.0,0.36527134]
[1747143344500,0.21396581,103790.0,103780.0,0.56762236]
[1747143344713,0.22360055,103790.0,103780.0,0.58689342]
[1747143344932,0.22360055,103790.0,103780.0,0.56762236]
[1747143345148,0.22360055,103790.0,103780.0,0.36527134]
[1747143345149,0.21396618,103790.0,103780.0,0.36527134]
[1747143345588,0.21396618,103790.0,103780.0,0.36827134]
[1747143346028,0.31127558,103790.0,103780.0,0.35307134]
[1747143346244,0.31127558,103790.0,103780.0,0.01307134]
[1747143346724,0.21396618,103790.0,103780.0,0.21542236]
[1747143346940,0.20433107,103790.0,103780.0,0.25112236]
[1747143347149,0.22360009,103790.0,103780.0,0.26075775]
[1747143347363,0.02126828,103790.0,103780.0,0.27039286]
[1747143347595,0.002,103790.0,103780.0,0.36770226]
[1747143347782,0.01163409,103790.0,103780.0,0.36770226]
[1747143348222,0.02126837,103790.0,103780.0,0.14541557]
[1747143348423,0.04053739,103790.0,103780.0,0.34642574]
[1747143348640,0.22360064,103790.0,103780.0,0.02749482]
[1747143348851,0.22360064,103790.0,103780.0,0.01129482]
[1747143349067,0.22360064,103790.0,103780.0,0.21364593]
[1747143349290,0.31127567,103790.0,103780.0,0.97045017]
[1747143349518,0.01163409,103790.0,103780.0,0.98008575]
[1747143349727,0.02126846,103790.0,103780.0,1.01525625]
[1747143349933,0.002,103790.0,103780.0,0.99598593]
[1747143350147,0.04053767,103790.0,103780.0,1.02489229]
[1747143350320,0.03090284,103790.0,103780.0,1.0345275]
[1747143350568,0.03090284,103790.0,103780.0,1.03452685]
[1747143350785,0.04053758,103790.0,103780.0,1.03452685]
[1747143351041,0.011634,103790.0,103780.0,1.03452685]
[1747143351261,0.002,103790.0,103780.0,1.05072685]
[1747143351477,0.01163418,103790.0,103780.0,1.05072685]
[1747143351703,0.22360008,103790.0,103780.0,0.79393482]
[1747143351901,0.2139659,103790.0,103780.0,0.77773482]
[1747143352525,0.2139659,103790.0,103780.0,0.98008593]
[1747143352759,0.02126828,103790.0,103780.0,1.0392921]
[1747143352956,0.0405373,103790.0,103780.0,1.0392921]
[1747143353181,0.002,103790.0,103780.0,2.62970696]
[1747143353397,0.19260447,103840.0,103830.0,0.00963103]
[1747143353639,0.0973094,103840.0,103830.0,0.58310402]
[1747143353839,0.01925742,103850.0,103840.0,0.56149365]
[1747143354041,0.23908753,103870.0,103850.0,0.21184259]
[1747143354042,0.24194208,103870.0,103850.0,0.21184259]
[1747143354252,0.13693626,103870.0,103860.0,0.21182313]
[1747143354464,0.04155266,103870.0,103860.0,0.22211316]
[1747143354681,0.2519141,103870.0,103860.0,0.00818873]
[1747143354918,0.07973785,103870.0,103860.0,0.22963946]
[1747143355135,0.09899258,103870.0,103860.0,0.22001186]
[1747143355357,0.09899286,103870.0,103860.0,0.22001186]
[1747143355584,0.29154169,103870.0,103860.0,0.00818873]
[1747143355799,0.28191465,103870.0,103860.0,0.2296402]
[1747143356029,0.28191465,103870.0,103860.0,1.26781089]
[1747143356030,0.06248441,103870.0,103860.0,1.26781089]
[1747143356264,0.06048441,103870.0,103860.0,1.29551287]
[1747143356500,0.06048441,103870.0,103860.0,1.37635127]
[1747143356732,0.06248441,103870.0,103860.0,1.84259556]
[1747143357460,0.002,103910.0,103900.0,0.56136557]
[1747143357678,0.002,103910.0,103900.0,0.96840714]
[1747143357679,0.0021453,103910.0,103900.0,0.96840714]
[1747143357904,0.0021453,103910.0,103900.0,0.95286811]
[1747143358123,0.0021453,103910.0,103900.0,1.40970811]
[1747143358569,0.02139151,103910.0,103900.0,1.38117876]
[1747143358796,0.02139151,103910.0,103900.0,0.80490197]
[1747143358797,0.21586641,103910.0,103900.0,0.80490197]
[1747143359228,0.21386641,103910.0,103900.0,0.80490197]
[1747143360083,0.21386641,103910.0,103900.0,0.80590197]
[1747143360298,0.21386641,103910.0,103900.0,0.80690197]
[1747143360515,0.22906641,103910.0,103900.0,0.35006197]
[1747143361583,0.79367925,103910.0,103900.0,0.01006197]
[1747143362998,0.34197581,103910.0,103900.0,0.01006197]
[1747143363230,0.34197581,103910.0,103900.0,0.00806197]
[1747143363751,0.34397581,103910.0,103900.0,0.01075911]
[1747143363980,0.79567925,103910.0,103900.0,0.01075911]
[1747143364206,0.34397581,103910.0,103900.0,0.01075911]
[1747143364431,0.34597581,103910.0,103900.0,0.01075911]
[1747143364659,0.23306641,103910.0,103900.0,0.01075911]
[1747143364876,0.02962473,103890.0,103880.0,0.22752]
[1747143365100,0.01962473,103890.0,103880.0,0.61371314]
[1747143365321,0.0196238,103900.0,103890.0,0.22138688]
[1747143365545,0.02887186,103900.0,103890.0,0.21164668]
[1747143365820,0.25101206,103890.0,103880.0,0.60408757]
[1747143365994,0.25101206,103890.0,103880.0,0.72202194]
[1747143365995,0.05850075,103890.0,103880.0,0.72202194]
[1747143366233,0.05850075,103890.0,103880.0,0.4344124]
[1747143366234,0.24138715,103890.0,103880.0,0.4344124]
[1747143366450,0.24138715,103890.0,103880.0,0.44884339]
[1747143366664,0.24138715,103890.0,103880.0,0.65099972]
[1747143366885,0.04887575,103890.0,103880.0,1.01625014]
[1747143367105,0.05850131,103890.0,103880.0,1.01625023]
[1747143367326,0.04887575,103890.0,103880.0,1.00662411]
[1747143367538,0.03925028,103890.0,103880.0,1.02587643]
[1747143367741,0.04887575,103890.0,103880.0,1.01625041]
[1747143367954,0.04887575,103890.0,103880.0,1.02587643]
[1747143368167,0.04887575,103890.0,103880.0,1.03550236]
[1747143368368,0.24138706,103890.0,103880.0,0.79584139]
[1747143368572,0.22776206,103890.0,103880.0,0.01643099]
[1747143368780,0.32050804,103890.0,103880.0,0.01643099]
[1747143369004,0.24356206,103890.0,103880.0,0.01643099]
[1747143369683,0.24356206,103890.0,103880.0,0.01543099]
[1747143369943,0.22776206,103890.0,103880.0,0.01443099]
[1747143370204,0.22776206,103890.0,103870.0,0.57105315]
[1747143370205,0.01962565,103880.0,103870.0,0.57105315]
[1747143370419,0.01,103880.0,103870.0,1.11043941]
[1747143370629,0.01,103890.0,103880.0,0.22140819]
[1747143370833,0.0292488,103900.0,103890.0,0.56154718]
[1747143371049,0.22174177,103900.0,103890.0,0.00016011]
[1747143371272,0.2855079,103900.0,103890.0,0.00016011]
[1747143371489,0.69404521,103900.0,103890.0,0.00016011]
[1747143371693,0.24234177,103900.0,103890.0,0.00016011]
[1747143371905,0.79135461,103900.0,103890.0,0.00016011]
[1747143372759,0.22798254,103880.0,103870.0,0.01554937]
[1747143372973,0.22798254,103880.0,103870.0,0.01454937]
[1747143373177,0.21178254,103880.0,103870.0,0.20217578]
[1747143373461,0.02925391,103870.0,103860.0,1.12234069]
[1747143373694,0.01962677,103870.0,103860.0,1.63570506]
[1747143373869,0.04888095,103870.0,103860.0,1.64533275]
[1747143374092,0.01962677,103870.0,103860.0,1.64533275]
[1747143374315,0.02925195,103880.0,103870.0,0.2224295]
[1747143374525,0.04887742,103880.0,103870.0,0.3197389]
[1747143374745,0.04902267,103880.0,103870.0,0.3197389]
[1747143374955,0.04902258,103880.0,103870.0,0.3197389]
[1747143375376,0.24155362,103880.0,103870.0,0.30148509]
[1747143375586,0.04902369,103880.0,103870.0,0.33036613]
[1747143375798,0.04902369,103880.0,103870.0,0.32936613]
[1747143376024,0.03939683,103880.0,103870.0,0.32936613]
[1747143376232,0.04902304,103880.0,103870.0,0.66936613]
[1747143376466,0.03939683,103880.0,103870.0,0.66936613]
[1747143376670,0.03939683,103880.0,103870.0,0.67829038]
[1747143376891,0.04902276,103880.0,103870.0,0.67829038]
[1747143377107,0.03902267,103880.0,103870.0,0.69371133]
[1747143377330,0.05864869,103880.0,103870.0,0.69371133]
[1747143377568,0.06827499,103880.0,103870.0,0.69371133]
[1747143377787,0.06827499,103880.0,103870.0,1.94664733]
[1747143377788,0.01014525,103880.0,103870.0,1.94664733]
[1747143378031,0.03939702,103880.0,103870.0,1.31502133]
[1747143378237,0.25117956,103880.0,103870.0,0.68408456]
[1747143378468,0.04902323,103880.0,103870.0,0.81201182]
[1747143378693,0.03939702,103880.0,103870.0,0.81201182]
[1747143378923,0.01014525,103880.0,103870.0,0.81201182]
[1747143379135,0.019771,103880.0,103870.0,0.81201182]
[1747143379361,0.02939684,103880.0,103870.0,0.81201182]
[1747143379592,0.22797509,103880.0,103870.0,0.0253452]
[1747143379812,0.25262741,103880.0,103870.0,0.3653452]
[1747143380030,0.25262741,103880.0,103870.0,0.5771483]
[1747143380249,0.22337509,103880.0,103870.0,0.0253452]
[1747143380914,0.22337509,103880.0,103870.0,0.3653452]
[1747143381158,0.02939683,103880.0,103870.0,1.6696307]
[1747143381401,0.00014525,103880.0,103870.0,1.94578954]
[1747143381848,0.00014525,103880.0,103870.0,2.35808954]
[1747143382060,0.00014525,103880.0,103870.0,2.37623039]
[1747143382488,0.01,103890.0,103880.0,0.56140819]
[1747143382742,0.23136483,103900.0,103890.0,0.21176197]
[1747143382955,0.24099002,103900.0,103890.0,1.04137137]
[1747143383186,0.01962399,103900.0,103890.0,1.64017624]
[1747143383405,0.04887261,103900.0,103890.0,1.64017624]
[1747143383612,0.05849641,103900.0,103890.0,1.64017624]
[1747143383837,0.03124676,103910.0,103900.0,0.22136585]
[1747143384131,0.23334463,103910.0,103900.0,0.20211741]
[1747143384339,0.23334463,103910.0,103900.0,0.3277684]
[1747143384553,0.22372139,103910.0,103900.0,0.32776859]
[1747143384771,0.21409787,103910.0,103900.0,0.32776859]
[1747143385038,0.22372121,103910.0,103900.0,0.34701693]
[1747143385272,0.002,103910.0,103900.0,0.34701629]
[1747143385488,0.003,103910.0,103900.0,1.31117429]
[1747143385708,0.02262287,103910.0,103900.0,1.65117429]
[1747143385918,0.02262287,103910.0,103900.0,1.43145329]
[1747143386131,0.03224593,103910.0,103900.0,1.43145329]
[1747143386358,0.02162297,103910.0,103900.0,1.43145329]
[1747143386589,0.002,103910.0,103900.0,1.88315673]
[1747143386818,0.002,103910.0,103900.0,1.88675673]
[1747143387047,0.22167972,103930.0,103920.0,0.21170083]
[1747143387261,0.22167972,103930.0,103910.0,0.79394473]
[1747143387262,0.24094501,103920.0,103910.0,0.79394473]
[1747143387471,0.24094575,103920.0,103910.0,1.55220092]
[1747143387684,0.01962195,103920.0,103910.0,1.91179662]
[1747143387908,0.03886631,103920.0,103910.0,1.90217356]
[1747143388115,0.01962195,103920.0,103910.0,1.91179662]
[1747143388360,0.02543548,103920.0,103910.0,1.91179662]
[1747143388575,0.0350578,103920.0,103910.0,1.88413662]
[1747143388786,0.04468021,103920.0,103910.0,1.84636462]
[1747143389050,0.02543548,103920.0,103910.0,1.84636462]
[1747143389323,0.02938839,103930.0,103920.0,0.22132296]
[1747143389554,0.23144736,103930.0,103920.0,1.24896523]
[1747143389799,0.23144736,103930.0,103920.0,0.76026542]
[1747143390012,0.2282043,103930.0,103920.0,0.60573191]
[1747143390253,0.24744765,103930.0,103920.0,0.63459933]
[1747143390513,0.24744765,103930.0,103920.0,0.62497701]
[1747143390751,0.2282044,103930.0,103920.0,0.5261966]
[1747143391000,0.2282044,103930.0,103920.0,0.6892724]
[1747143391001,0.21858254,103930.0,103920.0,0.6892724]
[1747143391228,0.21858254,103930.0,103910.0,0.5613277]
[1747143391229,0.23426972,103920.0,103910.0,0.8292]
[1747143391459,0.23428907,103910.0,103900.0,0.82806]
[1747143391700,0.2439125,103910.0,103900.0,1.11786218]
[1747143392182,0.22741723,103900.0,103890.0,0.2422]
[1747143392442,0.21741723,103900.0,103890.0,0.5822]
[1747143392700,0.21741723,103900.0,103890.0,0.38]
[1747143392701,0.23901723,103900.0,103890.0,0.38]
[1747143393201,0.23903669,103890.0,103880.0,0.002]
[1747143393421,0.24903669,103890.0,103880.0,0.20415623]
[1747143393619,0.25866197,103890.0,103880.0,0.59378244]
[1747143393872,0.23706197,103890.0,103880.0,1.14119856]
[1747143394072,0.23706197,103890.0,103880.0,0.64929723]
[1747143394558,0.06036613,103890.0,103880.0,0.77548479]
[1747143394738,0.06999151,103890.0,103880.0,0.77648479]
[1747143395010,0.24668744,103890.0,103880.0,0.450141]
[1747143395229,0.25826225,103890.0,103880.0,0.345]
[1747143395688,0.24826225,103890.0,103880.0,0.345]
[1747143395907,0.24826225,103890.0,103880.0,0.005]
[1747143396133,0.74404119,103890.0,103880.0,0.005]
[1747143396365,0.29233775,103890.0,103880.0,0.005]
[1747143396661,0.24826225,103890.0,103880.0,0.005]
[1747143396851,0.24826225,103890.0,103880.0,0.003]
[1747143397093,0.24826225,103890.0,103880.0,0.002]
[1747143397329,0.25026225,103890.0,103880.0,0.01162649]
[1747143397575,0.02781603,103890.0,103880.0,1.23000919]
[1747143397840,0.02781603,103890.0,103880.0,1.06731042]
[1747143397841,0.24920365,103890.0,103880.0,1.06731042]
[1747143398082,0.24920365,103890.0,103880.0,0.002]
[1747143398083,1.10089743,103890.0,103880.0,0.002]
[1747143398324,1.11543828,103890.0,103880.0,0.002]
[1747143399477,0.24436374,103840.0,103830.0,0.45245367]
[1747143399690,0.22186374,103840.0,103830.0,1.38265447]
[1747143399908,0.22186374,103840.0,103830.0,1.1522569]
[1747143400163,0.214104,103840.0,103830.0,0.35212084]
[1747143400390,0.21186346,103840.0,103830.0,0.95723117]
[1747143400634,0.22149319,103840.0,103830.0,0.96686174]
[1747143400866,0.22149431,103840.0,103830.0,0.5691028]
[1747143401096,0.2218643,103840.0,103830.0,0.5711028]
[1747143401319,0.2218643,103840.0,103830.0,0.82997164]
[1747143401563,0.2118643,103840.0,103830.0,0.8203408]
[1747143401818,0.2118643,103840.0,103830.0,0.86943617]
[1747143402066,0.215004,103840.0,103830.0,0.61985622]
[1747143402304,0.238004,103840.0,103830.0,0.01712084]
[1747143402532,0.238004,103840.0,103830.0,0.36013033]
[1747143402991,0.238004,103840.0,103830.0,0.02013033]
[1747143403251,0.238004,103840.0,103830.0,0.36013033]
[1747143403483,0.2810646,103840.0,103830.0,0.36013033]
[1747143403720,0.238004,103840.0,103830.0,0.02013033]
[1747143403963,0.70424829,103840.0,103830.0,0.02013033]
[1747143404202,0.80155769,103840.0,103830.0,0.02013033]
[1747143404449,1.05251769,103840.0,103830.0,0.02013033]
[1747143404682,1.14982709,103840.0,103830.0,0.01412084]
[1747143404911,1.60153053,103840.0,103830.0,0.01312084]
[1747143405156,0.25682496,103810.0,103800.0,0.125]
[1747143405376,0.7085284,103810.0,103800.0,0.125]
[1747143405600,0.82037865,103810.0,103800.0,0.125]
[1747143406054,0.82018852,103810.0,103800.0,0.125]
[1747143406715,0.82018852,103810.0,103800.0,0.13404998]
[1747143406934,0.36848508,103810.0,103800.0,0.13404998]
[1747143407189,0.82018852,103810.0,103800.0,0.13404998]
[1747143407623,0.36848508,103810.0,103800.0,0.13404998]
[1747143408061,0.25763483,103810.0,103800.0,0.13404998]
[1747143408286,0.82218852,103810.0,103800.0,0.13404998]
[1747143408724,0.91949792,103810.0,103800.0,0.13404998]
[1747143409163,0.82218852,103810.0,103800.0,0.13404998]
[1747143409899,1.53421196,103810.0,103800.0,0.13404998]
[1747143410122,1.53421196,103810.0,103800.0,0.11204998]
[1747143410597,1.08250852,103810.0,103800.0,0.11204998]
[1747143410823,1.08050852,103810.0,103800.0,0.11204998]
[1747143411079,1.63352136,103810.0,103800.0,0.11204998]
[1747143411310,1.17881792,103810.0,103800.0,0.11204998]
[1747143411523,1.18381792,103810.0,103800.0,0.11204998]
[1747143411988,1.18481792,103810.0,103800.0,0.11204998]
[1747143412622,1.53481792,103810.0,103800.0,0.11204998]
[1747143413533,0.27024752,103770.0,103760.0,0.002]
[1747143413751,0.81926036,103770.0,103760.0,0.002]
[1747143414439,1.06858036,103770.0,103760.0,0.002]
[1747143414945,0.61687692,103770.0,103760.0,0.00314525]
[1747143415173,1.5302838,103770.0,103760.0,0.00314525]
[1747143415384,1.5302838,103770.0,103760.0,0.00214525]
[1747143415385,1.6275932,103770.0,103760.0,0.00214525]
[1747143415588,1.6275932,103770.0,103750.0,1.0]
[1747143415589,0.28276812,103760.0,103750.0,1.0]
[1747143415799,1.2834844,103760.0,103750.0,1.00004846]
[1747143416012,0.92590769,103760.0,103750.0,1.00004846]
[1747143416228,1.37761113,103760.0,103750.0,1.00004846]
[1747143416434,0.92590769,103760.0,103750.0,1.00180636]
[1747143416766,0.92690769,103760.0,103750.0,1.00180636]
[1747143416962,0.91690769,103760.0,103750.0,1.00180636]
[1747143417376,0.82278096,103760.0,103750.0,1.00180636]
[1747143417575,0.82378096,103760.0,103750.0,1.00180636]
[1747143418907,1.2854844,103760.0,103750.0,1.00180636]
[1747143419312,1.6254844,103760.0,103750.0,0.95640636]
[1747143419727,0.62225029,103750.0,103740.0,0.05441164]
[1747143420086,0.25738841,103730.0,103720.0,0.03]
[1747143420300,1.05488125,103730.0,103720.0,0.03014545]
[1747143420505,0.80640125,103730.0,103720.0,0.0382974]
[1747143420713,1.30540125,103730.0,103720.0,0.0382974]
[1747143420945,1.6699421,103730.0,103720.0,0.0382974]
[1747143421171,1.77406883,103730.0,103720.0,0.0382974]
[1747143421792,1.77506883,103730.0,103720.0,0.0382974]
[1747143422212,0.86915866,103730.0,103720.0,0.0382974]
[1747143422465,1.3208621,103730.0,103720.0,0.0382974]
[1747143422666,1.3318621,103730.0,103720.0,0.0382974]
[1747143422873,1.6718621,103730.0,103720.0,0.0382974]
[1747143423088,1.6818621,103730.0,103720.0,0.0382974]
[1747143423308,2.1955715,103730.0,103720.0,0.0382974]
[1747143423545,0.67841452,103690.0,103680.0,0.002]
[1747143423748,0.77572392,103690.0,103680.0,0.00248516]
[1747143424179,0.82152392,103690.0,103680.0,0.00248516]
[1747143424397,0.36982048,103690.0,103680.0,0.00549973]
[1747143424602,0.82152392,103690.0,103680.0,0.00549973]
[1747143424808,0.34682048,103690.0,103680.0,0.00549973]
[1747143425040,0.32402048,103690.0,103680.0,0.00549973]
[1747143425455,0.36692048,103690.0,103680.0,0.00549973]
[1747143425886,0.32402048,103690.0,103680.0,0.00549973]
[1747143426020,0.32402048,103690.0,103680.0,0.45720317]
[1747143426492,0.32402048,103690.0,103680.0,0.00549973]
[1747143426710,0.36863479,103690.0,103680.0,0.00549973]
[1747143426928,0.0973094,103690.0,103680.0,0.00549973]
[1747143427136,0.30947963,103690.0,103680.0,0.00549973]
[1747143427380,0.30929751,103690.0,103680.0,0.00749973]
[1747143427879,0.30929751,103690.0,103680.0,0.00549973]
[1747143428131,0.30929751,103690.0,103680.0,0.00749973]
[1747143428867,0.21217023,103690.0,103680.0,0.45920317]
[1747143429085,0.21217023,103690.0,103680.0,0.79920317]
[1747143429336,0.20252657,103690.0,103680.0,0.79720317]
[1747143429594,0.31437682,103690.0,103680.0,0.00649973]
[1747143429834,0.31437682,103690.0,103680.0,0.00549973]
[1747143430071,0.31425073,103690.0,103680.0,0.00649973]
[1747143430537,0.31425073,103690.0,103680.0,0.00749973]
[1747143431246,0.31425073,103690.0,103680.0,0.01444813]
[1747143432145,0.29970988,103690.0,103680.0,0.01444813]
[1747143432399,0.36350977,103690.0,103680.0,0.01444813]